Cogmind - Beta 14 @@@ ROGUE MODE // 2024.09.20 @ 23:13:28 Player: GR4C3 Result: Destroyed by D-53 Grenadier with Mini Grenade Launcher Performance ------------- Evolutions (1) 500 Regions Visited (4) 800 Robots Destroyed (53) 265 Value Destroyed (1117) 1117 Prototype IDs (1) 20 Alien Tech Used (0) 0 Bonus (96) 96 TOTAL SCORE: 2798 Bonus ------- High Alert Combat Kills 63 Follower Combat Kills 33 Cogmind --------- Core Integrity 0/400 Matter 202/300 Energy 35/125 System Corruption 4% Temperature Cool (0) Movement Core (300) Ox5 Location -9/Mines Parts ------- > --- POWER (1) -------- Light Ion Engine > --- PROPULSION (3) --- Makeshift Leg Improved Hover Unit > --- UTILITY (3) ------ Small Storage Unit ECM Suite > --- WEAPON (2) ------- Heavy Assault Rifle Heavy Assault Rifle > --- INVENTORY (8) ---- Improved Terrain Scanner EM Shotgun Beam Rifle Improved Medium Laser Grenade Launcher Katana Peak State ------------ > --- POWER ------------ Light Nuclear Core > --- PROPULSION ------- Aluminum Leg Carbon-fiber Leg Carbon-fiber Leg > --- UTILITY ---------- Improved Heat Sink Visual Processing Unit ECM Suite > --- WEAPON ----------- Beam Rifle Beam Rifle > --- INVENTORY -------- Light Nuclear Core Small Laser Light Assault Rifle Light Assault Rifle Rocket Launcher [Rating: 20] Favorites ----------- Power Light Nuclear Core Engine Ion Engine Power Core Light Nuclear Core Propulsion Aluminum Leg Leg Aluminum Leg Hover Unit Improved Hover Unit Flight Unit Flight Unit Utility ECM Suite Device ECM Suite Storage Small Storage Unit Processor Visual Processing Unit Weapon Light Assault Rifle Energy Gun Beam Rifle Energy Cannon Particle Cannon Ballistic Gun Light Assault Rifle Launcher Rocket Launcher Build | -11 -10 -10 -9 -9 ------- Run | Yrd Mat Min Mat Min Slots Evolved 2 | . . . 2 . Power . | . . . . . Propulsion 1 | . . . 1 . Utility 1 | . . . 1 . Weapon . | . . . . . Parts Attached 86 | 8 21 11 40 6 Power 12 | 1 3 4 3 1 Engine 6 | 1 2 1 1 1 Core 6 | . 1 3 2 . Reactor . | . . . . . Propulsion 22 | 2 6 5 8 1 Treads . | . . . . . Leg 15 | 2 4 3 5 1 Wheel . | . . . . . Hover 3 | . . . 3 . Flight 4 | . 2 2 . . Utility 9 | 2 3 1 3 . Device 5 | 1 3 . 1 . Storage 3 | 1 . . 2 . Processor 1 | . . 1 . . Hackware . | . . . . . Protection . | . . . . . Artifact . | . . . . . Weapon 43 | 3 9 1 26 4 Energy Gun 18 | 2 3 . 11 2 Energy Cannon 2 | . . . 2 . Ballistic Gun 15 | 1 6 1 6 1 Ballistic Cannon . | . . . . . Launcher 8 | . . . 7 1 Special Weapon . | . . . . . Impact Weapon . | . . . . . Slashing Weapon . | . . . . . Piercing Weapon . | . . . . . Special Melee Weapon . | . . . . . Unidentified Prototypes 1 | . . . 1 . Parts Lost 21 | . 5 4 7 5 Power 4 | . 1 1 1 1 Propulsion 10 | . 2 2 4 2 Utility 3 | . . 1 1 1 Weapon 4 | . 2 . 1 1 Highest Loss Streak 5 | . 3 4 2 5 To Critical Strikes 1 | . . 1 . . Average Slot Usage (%) 94 | . 96 88 94 87 Engine 4 | . 9 5 . 4 Core 7 | . 3 6 11 4 Leg 20 | . 24 9 21 1 Hover 6 | . . . 10 24 Flight 2 | . 1 14 . . Device 14 | . 14 16 14 11 Storage 6 | . 13 . 3 11 Processor 6 | . . 5 11 7 Energy Gun 8 | . 10 4 8 6 Energy Cannon 1 | . . . 2 . Ballistic Gun 13 | . 17 23 7 11 Launcher 1 | . . . 2 4 Peak Build Rating 20 | 9 12 10 20 18 Average Rating 12 | 4 9 8 17 14 On Entrance 9 | . 9 9 10 18 Naked Turns . | . . . . . Heaviest Build 18 | 14 15 9 18 18 Greatest Support 40 | 20 20 20 40 21 Greatest Overweight (x) 2 | . 1 2 1 2 Average Overweight (x) . | . . . . . Largest Inventory Capacity 8 | 8 8 5 8 8 Average Capacity 6 | 6 7 5 5 8 Most Carried 8 | 5 8 5 8 8 Average Carried 4 | 2 3 4 5 7 Final Capacity 8 | 8 5 5 8 8 Final Carried 8 | 2 5 5 8 6 Class Distribution -------------------- 51% | Mutant 48% | Scavenger-Mutant Dominant Class ---------------- Mutant | -10/Materials Scavenger-Mutant | -10/Mines Scavenger-Mutant | -9/Materials Mutant | -9/Mines Resources | -11 -10 -10 -9 -9 ----------- Run | Yrd Mat Min Mat Min Matter Collected 1292 | 215 331 178 559 9 Remotely . | . . . . . Salvage Created 1332 | 12 373 163 709 75 Parts 96 | 5 31 12 43 5 Haulers Intercepted . | . . . . . Recyclers Shooed . | . . . . . Parts Field Recycled . | . . . . . Retrieved Matter . | . . . . . Parts Self-Destructed . | . . . . . Prevented . | . . . . . Kills | -11 -10 -10 -9 -9 ------- Run | Yrd Mat Min Mat Min Combat Hostiles Destroyed 47 | . 11 4 25 7 Guns 31 | . 11 4 12 4 AOE 16 | . . . 13 3 Classes Destroyed 11 | 1 4 . 4 2 Worker 2 | . . . 2 . Tunneler 2 | 1 . . . 1 Recycler 3 | . 1 1 1 . Mechanic 1 | . . . 1 . Watcher 3 | . 2 . 1 . Swarmer 22 | . 9 3 10 . Grunt 17 | . 2 1 13 1 Duelist 1 | . . . 1 . Sentry 1 | . . . 1 . Demolisher 1 | . . . . 1 Assembled 5 | . . . . 5 Best Kill Streak 7 | 1 4 4 6 7 Combat Bots Only 7 | . 4 3 6 7 Max Kills in Single Turn 4 | 1 1 1 4 3 Gunslinging . | . . . . . Exploded 2 | . . . 2 2 Melee . | . . . . . Uniques/NPCs Destroyed . | . . . . . Combat | -11 -10 -10 -9 -9 -------- Run | Yrd Mat Min Mat Min Hostile Shots Fired 283 | . 91 46 123 23 Missed 87 | . 28 17 37 5 Damage Taken 2521 | . 622 240 1168 491 Core 603 | . 109 89 273 132 Absorbed by Shields . | . . . . . Regen/Repaired (Parts) 68 | . . . 68 . Core Remaining (%) 60 | 100 . 20 . . Volleys Fired 166 | 3 58 20 72 13 Largest 2 | 2 2 2 2 2 Hottest 124 | 60 85 60 124 68 Shots Fired 307 | 6 104 36 142 19 Gun 282 | 6 104 36 120 16 Cannon 9 | . . . 9 . Launcher 16 | . . . 13 3 Special . | . . . . . Kinetic 181 | 3 77 32 55 14 Thermal 98 | 3 20 4 71 . Explosive 14 | . . . 11 3 Electromagnetic 14 | . 7 . 5 2 Robot Hit Streak 8 | 3 8 6 8 7 Robot Miss Streak 7 | 1 5 5 7 2 Penetration Max . | . . . . . Secondary Targets 4 | . 2 . 2 . Max Gunslinging Chain 1 | . 1 . 1 . Shots Hit Robots 150 | 5 49 16 71 9 Core Hits 100 | 1 22 9 49 19 Critical Kills . | . . . . . Critical Parts Destroyed . | . . . . . Critical Strikes 2 | . . . 2 . Burn 2 | . . . 2 . Melee Attacks . | . . . . . Impact . | . . . . . Slashing . | . . . . . Piercing . | . . . . . Sneak Attacks . | . . . . . Combat Hostiles . | . . . . . Follow-up Attacks . | . . . . . Damage Inflicted 3673 | 67 563 163 2369 511 Guns 1674 | 67 520 163 760 164 Cannons 83 | . . . 83 . Explosions 1916 | . 43 . 1526 347 Melee . | . . . . . Ramming . | . . . . . Kinetic 987 | 43 365 163 264 152 Thermal 714 | 24 154 . 536 . Explosive 1799 | . . . 1452 347 Electromagnetic 173 | . 44 . 117 12 Impact . | . . . . . Slashing . | . . . . . Piercing . | . . . . . Highest Corruption 4 | . . . . 4 Average Corruption 4 | . . . . 4 Corruption Purged . | . . . . . Corruption Blocked . | . . . . . Effects 1 | . . . . 1 Message Errors 1 | . . . . 1 Overload Shots . | . . . . . Overflow Damage 55 | . . . 55 . Projectiles . | . . . . . Explosions 55 | . . . 55 . Melee . | . . . . . Knockbacks . | . . . . . Impact . | . . . . . Kinetic . | . . . . . Secondary . | . . . . . Self-Inflicted Damage 52 | . . . 52 . Shots 3 | . . . 3 . Rammed . | . . . . . Targets Rammed . | . . . . . Kicked . | . . . . . Crushed . | . . . . . Highest Temperature 253 | . 230 34 253 18 Average Temperature 55 | . 50 12 62 7 Received Heat Transfer 411 | . 126 . 258 27 Siege Activations . | . . . . . Robots Corrupted . | . . . . . Combat Hostiles . | . . . . . Parts Fried . | . . . . . Impact Corruptions . | . . . . . Robots Melted . | . . . . . Combat Hostiles . | . . . . . Parts Melted 1 | . . . 1 . Heat Transferred 1755 | 50 261 . 1444 . Parts Sabotaged . | . . . . . Parts Stolen . | . . . . . Parts Stripped . | . . . . . Power Chain Reactions 1 | . 1 . . . Alert | -11 -10 -10 -9 -9 ------- Run | Yrd Mat Min Mat Min Peak Influence 677 | 5 202 117 677 320 Initial 264 | . 3 52 45 264 Average 243 | . 85 85 411 284 Maximum Alert Level 2 | . 1 . 2 1 Low Security (%) 50 | 100 95 100 5 . Level 1 20 | . 4 . 32 100 Level 2 29 | . . . 62 . Level 3 . | . . . . . Level 4 . | . . . . . Level 5 . | . . . . . High Security . | . . . . . Max Security . | . . . . . Squads Dispatched 6 | . 1 . 5 . Investigation 1 | . . . 1 . Extermination . | . . . . . Reinforcement 5 | . 1 . 4 . Assault . | . . . . . Garrison . | . . . . . Intercept . | . . . . . Searches Triggered . | . . . . . Construction Impeded . | . . . . . Haulers Reinforced . | . . . . . Active Scanning Responses . | . . . . . Cargo Convoy Interrupts . | . . . . . Stealth | -11 -10 -10 -9 -9 --------- Run | Yrd Mat Min Mat Min Distress Signals 3 | . 1 . 2 . Communications Jammed . | . . . . . Distress Signals . | . . . . . Times Spotted 94 | . 19 5 49 21 Peak Tracking Total 17 | . 4 3 10 17 Tactical Retreats 10 | . 3 . 5 2 Traps | -11 -10 -10 -9 -9 ------- Run | Yrd Mat Min Mat Min Traps Triggered 5 | . 4 . 1 . Indirectly . | . . . . . Trap Hack Attempts . | . . . . . Triggered . | . . . . . Disarmed . | . . . . . Reprogrammed . | . . . . . Reused . | . . . . . Traps Extracted . | . . . . . Installed . | . . . . . Triggered . | . . . . . Machines | -11 -10 -10 -9 -9 ---------- Run | Yrd Mat Min Mat Min Machines Disabled 4 | . . . 4 . Max in Single Turn 2 | . . . 2 . Machines Repaired . | . . . . . Machines Dismantled . | . . . . . Machines Sabotaged . | . . . . . Overloaded Fab Kills . | . . . . . Hacking | -11 -10 -10 -9 -9 --------- Run | Yrd Mat Min Mat Min Machines Accessed 7 | . 2 . 5 . Terminals 5 | . 2 . 3 . Fabricators . | . . . . . Repair Stations 1 | . . . 1 . Recycling Units 1 | . . . 1 . Scanalyzers . | . . . . . Garrison Access . | . . . . . Total Hacks 9 | . 2 . 7 . Successful 6 | . 1 . 5 . Failed 3 | . 1 . 2 . Catastrophic . | . . . . . Database Lockouts . | . . . . . Manual . | . . . . . Terminals 6 | . 2 . 4 . Fabricators . | . . . . . Repair Stations 2 | . . . 2 . Recycling Units 1 | . . . 1 . Scanalyzers . | . . . . . Garrison Access . | . . . . . Terminal Hacks 3 | . 1 . 2 . Record 1 | . . . 1 . Security Status 1 | . 1 . . . Reinforcement Status 1 | . . . 1 . Fabricator Hacks . | . . . . . Repair Station Hacks 2 | . . . 2 . Scan Component 1 | . . . 1 . Repair 1 | . . . 1 . Recycling Unit Hacks 1 | . . . 1 . Report Inventory 1 | . . . 1 . Scanalyzer . | . . . . . Garrison Access Hacks . | . . . . . Unauthorized Hacks . | . . . . . Terminals . | . . . . . Fabricators . | . . . . . Repair Stations . | . . . . . Recycling Units . | . . . . . Scanalyzers . | . . . . . Garrison Access . | . . . . . Data Cores Recovered . | . . . . . Used . | . . . . . Hacking Detections 1 | . . . 1 . Full Trace Events . | . . . . . Feedback Events . | . . . . . Feedback Blocked . | . . . . . Robot Schematics Acquired . | . . . . . Robots Built . | . . . . . Authchips . | . . . . . Time . | . . . . . Total Robot Build Rating . | . . . . . Part Schematics Acquired . | . . . . . Parts Built . | . . . . . Authchips . | . . . . . Time . | . . . . . Total Part Build Rating . | . . . . . Parts Repaired 1 | . . . 1 . Time 26 | . . . 26 . Parts Recycled . | . . . . . Recycled Matter . | . . . . . Retrieved Matter . | . . . . . Retrieved Components . | . . . . . Parts Scanalyzed . | . . . . . Part Schematics Acquired . | . . . . . Parts Damaged . | . . . . . Bothacking | -11 -10 -10 -9 -9 ------------ Run | Yrd Mat Min Mat Min Used RIF Installer . | . . . . . Robots Hacked . | . . . . . Non-combat . | . . . . . Combat . | . . . . . Robot Hacks Applied . | . . . . . Relay Couplers Released . | . . . . . Fabnet Peak Effective % . | . . . . . Robots Rewired . | . . . . . Allies Hacked . | . . . . . Hacks Repelled . | . . . . . Allies | -11 -10 -10 -9 -9 -------- Run | Yrd Mat Min Mat Min Total Allies 3 | . . 1 . 2 Largest Group 2 | . . 1 1 2 Highest-Rated Group 44 | . . 31 31 44 Highest-Rated Ally 31 | . . 31 31 31 Total Orders . | . . . . . Ally Attacks 7 | . . . 4 3 Total Damage 63 | . . . 41 22 Kills 1 | . . . 1 . Allies Corrupted . | . . . . . Allies Melted . | . . . . . Intel | -11 -10 -10 -9 -9 ------- Run | Yrd Mat Min Mat Min Robot Analysis Total . | . . . . . Derelict Logs Recovered 1 | . . 1 . . Drone Launches . | . . . . . Drone Recoveries . | . . . . . Exploration | -11 -10 -10 -9 -9 ------------- Run | Yrd Mat Min Mat Min Turns Passed 2143 | 72 740 240 1004 87 Spaces Moved 1694 | 47 492 253 833 69 Core 22 | 14 7 1 . . Treads . | . . . . . Legs 912 | 33 414 67 397 1 Wheels . | . . . . . Hover 504 | . . . 436 68 Flight 256 | . 71 185 . . Fastest Speed 37 | 50 37 37 52 52 Average Speed 88 | 99 107 64 84 67 Slowest Speed 200 | 120 120 200 190 180 Overloaded Moves . | . . . . . Propulsion Burnouts . | . . . . . Robots Hopped . | . . . . . Cave-ins Triggered . | . . . . . Exploration Rate (%) 45 | 4 78 55 66 26 Regions Visited 4 Branch Regions 2 Pre-discovered Areas 1 | . . 1 . . Known Exits Taken . | . . . . . Unknown Exits Taken 4 | 1 1 1 1 . Scrap Searched 1 | . . 1 . . Spaces Dug . | . . . . . Terrain Destroyed 134 | . 5 . 103 26 Melee . | . . . . . Projectile . | . . . . . AOE 134 | . 5 . 103 26 Terrain Rammed . | . . . . . Walls Destroyed . | . . . . . Machines Disabled . | . . . . . Actions | -11 -10 -10 -9 -9 --------- Run | Yrd Mat Min Mat Min Total 2048 | 66 604 300 987 91 Wait 27 | . 10 3 14 . Move 1690 | 46 491 252 832 69 Hop . | . . . . . Pick Up 54 | 9 18 9 16 2 Fast Attach 12 | . 4 . 8 . Attach 29 | 7 10 5 4 3 Detach . | . . . . . Swap 45 | 1 7 6 28 3 Drop 25 | . 6 5 13 1 Fire 166 | 3 58 20 72 13 Melee . | . . . . . Ram . | . . . . . Kick . | . . . . . Crush . | . . . . . Escape Stasis . | . . . . . Rewire . | . . . . . Trap . | . . . . . Miscellaneous . | . . . . . Route ------- -11/Scrapyard -10/Materials (discovered 4 exits: *Mat x2 / [*Min x2]) -10/Mines (discovered 2 exits: *Mat x2) -9/Materials (discovered 3 exits: [*Mat] / [*Min x2]) -9/Mines History --------- Turn | Location | Event 2 | -11/Scrapyard | Met Revision 17 22 | -11/Scrapyard | Discovered new exit (range 16) 73 | -11/Scrapyard | Entered Materials 189 | -10/Materials | Discovered new exit (range 8) 312 | -10/Materials | Build established: Mutant 323 | -10/Materials | Discovered new exit (range 6) 503 | -10/Materials | Discovered new exit (range 5) 660 | -10/Materials | Lost 3 parts (2n1w) 704 | -10/Materials | Discovered new exit (range 6) 813 | -10/Materials | Entered Mines 840 | -10/Mines | Found a hidden stash of uninstalled traps 875 | -10/Mines | Core integrity fell below 50% 915 | -10/Mines | Learned Materials stockpile data 923 | -10/Mines | Lost 4 parts (1p2n1u) 951 | -10/Mines | Received a Rocket Launcher from a helpful Derelict 952 | -10/Mines | Escorted by a lone wolf Derelict 972 | -10/Mines | Learned location of Storage (-7) 1022 | -10/Mines | Discovered new exit (range 10) 1045 | -10/Mines | Discovered new exit (range 4) 1053 | -10/Mines | Entered Materials 1053 | -9/Materials | Accompanied by 1 ally 1053 | -9/Materials | Evolved 2 slots: Propulsion x1, Utility x1 1286 | -9/Materials | Build established: Scavenger-Mutant 1314 | -9/Materials | Repaired Lgt. Assault Rifle 1545 | -9/Materials | Discovered new exit (range 17) 1712 | -9/Materials | Core integrity fell below 50% 1771 | -9/Materials | Discovered new exit (range 18) 1939 | -9/Materials | Discovered new exit (range 6) 2031 | -9/Materials | Build established: Mutant 2057 | -9/Materials | Entered Mines 2081 | -9/Mines | Assembled infested the area 2086 | -9/Mines | Assisted by a Guerilla fighting off Assembled 2141 | -9/Mines | Core integrity fell below 20% 2144 | -9/Mines | Destroyed by D-53 Grenadier with Mini Grenade Launcher Last Messages --------------- 02115_ as-42704 destroyed. 02115_ as-47189 destroyed. 02115_ as-46110 destroyed. 02117_ R-06 Scavenger destroyed. 02119_ U-05 Engineer lays Concrete. 02122_ A pair of derelicts emerge from the shadows: "We're, um, lost. You wouldn't happen to know the way out of here, would you?" 02124_ T-07 Excavator is excavating. 02127_ 6Z-O1X(z) destroyed. 02127_ Imp. Hover Unit destroyed. 02128_ T-07 Excavator is excavating. 02129_ Acquired Mak. Leg. 02132_ T-07 Excavator is excavating. 02132_ E7-42P(g) destroyed. 02132_ D-53 Grenadier destroyed. 02136_ Hvy. EM Pulse Gun destroyed. 02137_ T-07 Excavator is excavating. 02140_ The unstable cave ceiling collapses. 02141_ T-07 Excavator is excavating. Map ----- +----------------------------------------------------+ | ???????## ###??????????????????????? | | ???????# ##?????????????????????? | | ???????# #?????????????????????? | | ?####??# #?????????????????????? | | ## #?## ## #????????????????????? | | # ??### ##?# #???????????????????? | | ????## ### ##???????????????????? | | ##???##### #?##????????????????????? | | ? ##??????# #???????????????????????? | | ?? #??????## #???????????????????????? | | ?? #??????# ##??????????????????????? | | ??? ##?????#* ##?????????????????????? | | ???? ##????#%! ??????????????????????? | | ????# #???##%*= #??????????????????????? | | ????# #??##!=! #??????????????????????? | | ????# #??## = #??????????????????????? | | ????##=*##?## #??????????????????????? | | ?????##%#??# # d ##?????????????????????? | | ??????# #### # % # #?????????????????????? | | ??????#! % ## #?????????????????????? | | ??????# #### ### % ##????????????????????? | | ??????# #??# ##?# ##???????????????????? | | ??????# #??####??# ##??????????????????? | | ??????# #?????????# #??????????????????? | | ??????# #??????????## ! ##?????????????????? | | ??????# #??????????# @ #?????????????????? | | ??????# #??????????# #????????????????? | | ??????# ??????????## #????????????????? | | ??????? #???????????## #???????????????? | | ??????? ?????????????## ?????????????? | | ???????#??????????????#### ???????????? | | ?????????????????????????? ??????????? | | ?????????????????????????? # ??????????? | | ?????????????????????????? ## #? ???????????? | | ?????????????????????????? ##? #?????????????? | | ?????????????????????????? #???t ?????????????? | | ??????????????????????????# ##????##????????????? | | ???????????????????????????###???????????????????? | | ?????????????????????????????????????????????????? | | ?????????????????????????????????????????????????? | | ?????????????????????????????????????????????????? | | ?????????????????????????????????????????????????? | | ?????????????????????????????????????????????????? | | ?????????????????????????????????????????????????? | | ?????????????????????????????????????????????????? | | ?????????????????????????????????????????????????? | | ?????????????????????????????????????????????????? | | ?????????????????????????????????????????????????? | | ?????????????????????????????????????????????????? | | | +----------------------------------------------------+ Best States ------------- Heat Dissipation 42 Energy Generation 14 Energy Capacity 310 Matter Stores 300 Matter Capacity 300 Sight Range 18 Terrain Scan Range 16 Terrain Scan Density 10 ECM Strength 1 Evasion (%) 62 Item Schematics ----------------- None Robot Schematics ------------------ None Fabricated ------------ Nothing Alien Tech Used ----------------- None Achievements -------------- None Challenges ------------ None Game ------ Seed ScanGravitySuit Manual? 0 Play Time 00:53:03 Cumulative 61.9 hours Start 2024.09.18 @ 18:41:03 End 2024.09.20 @ 23:13:28 Sessions 2 Manual Loads 0 Difficulty Rogue Special Mode None Game No. 47 Rogue 33 Adventurer 14 Explorer 0 Win Type - Total 0 Types 0/0/0/0/0/0/0/0/0 Lore% 17 Gallery% 35 Achievement% 24 Wizard Run 0 Options --------- Layout 1 ASCII 0 Keyboard 0 Movement Mouse Keybinds 0 Fullscreen 0 Font 20/SmallcapsGlow Map View 50x35 Zoom Use 0% Tactical HUD 1 Map Filters NONE Filters NONE Steam 1 RUN: 30a6aaeb-a1ad-4ead-9ce5-c8d448488f3b